[Event "Early-Titled-Tuesday-Blitz-January-30-2024"]
[Site "Chess.com"]
[Date "2024.01.30"]
[Round "4"]
[White "Onthequiet"]
[Black "ChainedDowntohell"]
[Result "1/2-1/2"]
[WhiteElo "2407"]
[BlackElo "2591"]
[TimeControl "180+1"]
[EndTime "8:40:47 PST"]
[Termination "Game drawn by repetition"]

1. d4 {[%clk 0:03:00.9]} 1... Nf6 {[%clk 0:02:59.7]} 2. Nf3 {[%clk 0:02:57.6]}
2... e6 {[%clk 0:02:58.3]} 3. a3 {[%clk 0:02:56.1]} 3... b6 {[%clk 0:02:54.1]}
4. Bf4 {[%clk 0:02:54]} 4... Bb7 {[%clk 0:02:52.4]} 5. Nbd2 {[%clk 0:02:52.8]}
5... d5 {[%clk 0:02:36.6]} 6. e3 {[%clk 0:02:50.5]} 6... Bd6 {[%clk 0:02:31.5]}
7. Bg5 {[%clk 0:02:48.9]} 7... h6 {[%clk 0:02:19.4]} 8. Bh4 {[%clk 0:02:47.8]}
8... O-O {[%clk 0:02:10.8]} 9. Ne5 {[%clk 0:02:42.1]} 9... Be7 {[%clk
0:01:58.8]} 10. Be2 {[%clk 0:02:33.8]} 10... c5 {[%clk 0:01:56.8]} 11. c3 {[%clk
0:02:30.7]} 11... Nbd7 {[%clk 0:01:48.4]} 12. f4 {[%clk 0:02:28.1]} 12... Ne4
{[%clk 0:01:43.8]} 13. Bxe7 {[%clk 0:02:24.3]} 13... Qxe7 {[%clk 0:01:44.7]} 14.
Nxe4 {[%clk 0:02:22.9]} 14... Nxe5 {[%clk 0:01:34.8]} 15. fxe5 {[%clk
0:02:19.8]} 15... dxe4 {[%clk 0:01:34.7]} 16. O-O {[%clk 0:02:18.6]} 16... Rad8
{[%clk 0:01:27.8]} 17. Qa4 {[%clk 0:01:48.1]} 17... Bd5 {[%clk 0:01:11.7]} 18.
b4 {[%clk 0:01:39.5]} 18... cxd4 {[%clk 0:01:00]} 19. cxd4 {[%clk 0:01:35.8]}
19... Rc8 {[%clk 0:00:42.4]} 20. Rac1 {[%clk 0:01:32.2]} 20... Qg5 {[%clk
0:00:38.7]} 21. Kf2 {[%clk 0:01:20.2]} 21... Rxc1 {[%clk 0:00:33.8]} 22. Rxc1
{[%clk 0:01:18.9]} 22... f6 {[%clk 0:00:34.4]} 23. Qxa7 {[%clk 0:00:50.7]} 23...
fxe5+ {[%clk 0:00:33.6]} 24. Ke1 {[%clk 0:00:51.3]} 24... Qxe3 {[%clk
0:00:24.2]} 25. Rc7 {[%clk 0:00:51.1]} 25... Qg1+ {[%clk 0:00:21.1]} 26. Kd2
{[%clk 0:00:51]} 26... Qxd4+ {[%clk 0:00:19.5]} 27. Ke1 {[%clk 0:00:51]} 27...
Qa1+ {[%clk 0:00:13]} 28. Kd2 {[%clk 0:00:51]} 28... e3+ {[%clk 0:00:12.8]} 29.
Kc2 {[%clk 0:00:44.7]} 29... Be4+ {[%clk 0:00:11]} 30. Kb3 {[%clk 0:00:43.1]}
30... Qb1+ {[%clk 0:00:05.3]} 31. Ka4 {[%clk 0:00:42]} 31... Ra8 {[%clk
0:00:03.1]} 32. Rxg7+ {[%clk 0:00:39.4]} 32... Kh8 {[%clk 0:00:02.5]} 33. Rh7+
{[%clk 0:00:29.9]} 33... Kg8 {[%clk 0:00:03]} 34. Rg7+ {[%clk 0:00:28.4]} 34...
Kh8 {[%clk 0:00:03.2]} 35. Rh7+ {[%clk 0:00:28.2]} 35... Kg8 {[%clk 0:00:03.4]}
36. Rg7+ {[%clk 0:00:28]} 1/2-1/2

[Event "Early-Titled-Tuesday-Blitz-January-30-2024"]
[Site "Chess.com"]
[Date "2024.01.30"]
[Round "4"]
[White "mbchess97"]
[Black "Mackster23"]
[Result "0-1"]
[WhiteElo "2376"]
[BlackElo "2676"]
[TimeControl "180+1"]
[EndTime "8:40:49 PST"]
[Termination "Mackster23 won on time"]

1. c4 {[%clk 0:03:00.9]} 1... Nf6 {[%clk 0:02:59.3]} 2. g3 {[%clk 0:03:00.4]}
2... e6 {[%clk 0:02:59.2]} 3. Bg2 {[%clk 0:03:00.5]} 3... d5 {[%clk 0:02:59.6]}
4. Nc3 {[%clk 0:03:00]} 4... Be7 {[%clk 0:02:53.9]} 5. Nf3 {[%clk 0:02:58]} 5...
d4 {[%clk 0:02:49.5]} 6. Nb5 {[%clk 0:02:47.8]} 6... c5 {[%clk 0:02:43.7]} 7. d3
{[%clk 0:02:40.9]} 7... a6 {[%clk 0:02:42.2]} 8. Na3 {[%clk 0:02:40.2]} 8... Nc6
{[%clk 0:02:41.8]} 9. Bf4 {[%clk 0:02:32.4]} 9... O-O {[%clk 0:02:35.5]} 10. O-O
{[%clk 0:02:31.9]} 10... Nh5 {[%clk 0:02:26.2]} 11. Bd2 {[%clk 0:02:31.3]} 11...
e5 {[%clk 0:02:26.5]} 12. Nc2 {[%clk 0:02:26]} 12... f5 {[%clk 0:02:19.7]} 13.
e4 {[%clk 0:02:05.5]} 13... Nf6 {[%clk 0:01:29.8]} 14. exf5 {[%clk 0:01:34.4]}
14... Bxf5 {[%clk 0:01:30.7]} 15. Qe2 {[%clk 0:01:13.3]} 15... Bd6 {[%clk
0:01:24.7]} 16. Nh4 {[%clk 0:01:07.5]} 16... Bg4 {[%clk 0:01:19.9]} 17. f3
{[%clk 0:00:53.9]} 17... Bd7 {[%clk 0:01:15.3]} 18. f4 {[%clk 0:00:51.4]} 18...
exf4 {[%clk 0:01:00.5]} 19. Bxf4 {[%clk 0:00:51.1]} 19... Bxf4 {[%clk
0:01:00.3]} 20. gxf4 {[%clk 0:00:46.6]} 20... Bg4 {[%clk 0:00:58]} 21. Nf3
{[%clk 0:00:42.4]} 21... Qd6 {[%clk 0:00:51.6]} 22. h3 {[%clk 0:00:39.9]} 22...
Bh5 {[%clk 0:00:50.8]} 23. Rae1 {[%clk 0:00:34.9]} 23... Qxf4 {[%clk 0:00:41.7]}
24. Qd1 {[%clk 0:00:08.5]} 24... Rae8 {[%clk 0:00:38.9]} 25. Qb1 {[%clk
0:00:06]} 25... Qg3 {[%clk 0:00:38]} 26. b4 {[%clk 0:00:04.7]} 26... Nd7 {[%clk
0:00:28]} 27. bxc5 {[%clk 0:00:04.6]} 27... Nxc5 {[%clk 0:00:16]} 28. Ncxd4
{[%clk 0:00:04.5]} 28... Nxd4 {[%clk 0:00:10.6]} 29. Nxd4 {[%clk 0:00:04]} 29...
Nxd3 {[%clk 0:00:10]} 30. Rxf8+ {[%clk 0:00:02.3]} 30... Rxf8 {[%clk 0:00:10.9]}
0-1

[Event "Early-Titled-Tuesday-Blitz-January-30-2024"]
[Site "Chess.com"]
[Date "2024.01.30"]
[Round "4"]
[White "ozates"]
[Black "Savagelittlemole"]
[Result "0-1"]
[WhiteElo "2640"]
[BlackElo "2486"]
[TimeControl "180+1"]
[EndTime "8:40:50 PST"]
[Termination "Savagelittlemole won by resignation"]

1. e4 {[%clk 0:02:59.8]} 1... c5 {[%clk 0:02:58.7]} 2. Nf3 {[%clk 0:02:58]} 2...
d6 {[%clk 0:02:59]} 3. Bb5+ {[%clk 0:02:56.7]} 3... Nd7 {[%clk 0:02:58.7]} 4.
O-O {[%clk 0:02:55.6]} 4... a6 {[%clk 0:02:58.5]} 5. Bd3 {[%clk 0:02:56.2]} 5...
g6 {[%clk 0:02:58.1]} 6. c3 {[%clk 0:02:56]} 6... Bg7 {[%clk 0:02:58.7]} 7. Bc2
{[%clk 0:02:56.8]} 7... Ngf6 {[%clk 0:02:58.7]} 8. d4 {[%clk 0:02:57.4]} 8...
cxd4 {[%clk 0:02:57.8]} 9. cxd4 {[%clk 0:02:58.3]} 9... O-O {[%clk 0:02:57.6]}
10. Nc3 {[%clk 0:02:52.7]} 10... e5 {[%clk 0:02:56]} 11. a4 {[%clk 0:02:45.2]}
11... exd4 {[%clk 0:02:54.1]} 12. Nxd4 {[%clk 0:02:46.1]} 12... Nc5 {[%clk
0:02:52]} 13. b4 {[%clk 0:02:44.8]} 13... Ne6 {[%clk 0:02:44.3]} 14. Be3 {[%clk
0:02:35.5]} 14... Ng4 {[%clk 0:02:34]} 15. Bb3 {[%clk 0:02:13.5]} 15... Nxe3
{[%clk 0:02:24.1]} 16. fxe3 {[%clk 0:02:14.4]} 16... Kh8 {[%clk 0:02:01.4]} 17.
Nd5 {[%clk 0:02:09.9]} 17... Bd7 {[%clk 0:01:56.8]} 18. a5 {[%clk 0:02:07.1]}
18... Rc8 {[%clk 0:01:52.1]} 19. Qd2 {[%clk 0:01:51.6]} 19... Bb5 {[%clk
0:01:32.8]} 20. Rfc1 {[%clk 0:01:46]} 20... Qg5 {[%clk 0:01:26]} 21. Rxc8 {[%clk
0:01:10.2]} 21... Rxc8 {[%clk 0:01:26.9]} 22. Rd1 {[%clk 0:01:05.1]} 22... Bc4
{[%clk 0:01:01.4]} 23. Bxc4 {[%clk 0:00:51.4]} 23... Rxc4 {[%clk 0:01:02.3]} 24.
Nb6 {[%clk 0:00:51.8]} 24... Nxd4 {[%clk 0:00:56.8]} 25. exd4 {[%clk 0:00:40.1]}
25... Bxd4+ {[%clk 0:00:47.9]} 26. Kf1 {[%clk 0:00:33]} 26... Qf6+ {[%clk
0:00:37.9]} 27. Ke2 {[%clk 0:00:33.1]} 27... Qf2+ {[%clk 0:00:37.9]} 28. Kd3
{[%clk 0:00:33.2]} 28... Rc3+ {[%clk 0:00:34.3]} 29. Qxc3 {[%clk 0:00:33.5]}
29... Bxc3 {[%clk 0:00:34.7]} 30. Kxc3 {[%clk 0:00:34.4]} 30... Qxg2 {[%clk
0:00:31.5]} 31. Rxd6 {[%clk 0:00:34.3]} 31... Qxe4 {[%clk 0:00:31.2]} 32. Rd4
{[%clk 0:00:31.2]} 32... Qe5 {[%clk 0:00:29.9]} 33. Kc4 {[%clk 0:00:31.1]} 33...
Qxh2 {[%clk 0:00:28.4]} 34. Rd7 {[%clk 0:00:31.2]} 34... Qg2 {[%clk 0:00:25.6]}
35. Kc5 {[%clk 0:00:23.6]} 35... Qc6+ {[%clk 0:00:24.8]} 36. Kd4 {[%clk
0:00:23.9]} 36... Kg7 {[%clk 0:00:21.6]} 37. Rd5 {[%clk 0:00:20.5]} 37... h5
{[%clk 0:00:20.7]} 38. Nc4 {[%clk 0:00:19.8]} 38... Qf6+ {[%clk 0:00:19.2]} 39.
Ne5 {[%clk 0:00:20.7]} 39... h4 {[%clk 0:00:18.6]} 40. Rd7 {[%clk 0:00:20.8]}
40... Qf2+ {[%clk 0:00:18.2]} 41. Kd5 {[%clk 0:00:20.7]} 41... h3 {[%clk
0:00:18.6]} 0-1

[Event "Early-Titled-Tuesday-Blitz-January-30-2024"]
[Site "Chess.com"]
[Date "2024.01.30"]
[Round "4"]
[White "Actuary44"]
[Black "ritanovikova"]
[Result "1-0"]
[WhiteElo "2485"]
[BlackElo "2200"]
[TimeControl "180+1"]
[EndTime "8:40:53 PST"]
[Termination "Actuary44 won on time"]

1. e4 {[%clk 0:03:00.9]} 1... d5 {[%clk 0:02:58.7]} 2. e5 {[%clk 0:03:00.8]}
2... Bf5 {[%clk 0:02:58.3]} 3. g4 {[%clk 0:03:00.2]} 3... Bg6 {[%clk 0:02:55]}
4. h4 {[%clk 0:02:59.1]} 4... h5 {[%clk 0:02:54.6]} 5. d4 {[%clk 0:02:54.1]}
5... hxg4 {[%clk 0:02:53.1]} 6. e6 {[%clk 0:02:49.7]} 6... Qc8 {[%clk
0:02:47.4]} 7. exf7+ {[%clk 0:02:47.8]} 7... Bxf7 {[%clk 0:02:48.3]} 8. Bd3
{[%clk 0:02:46.1]} 8... Nf6 {[%clk 0:02:41.1]} 9. Bg5 {[%clk 0:02:41.6]} 9...
Bh5 {[%clk 0:02:25.2]} 10. Ne2 {[%clk 0:02:36.9]} 10... Nc6 {[%clk 0:02:12.2]}
11. Nf4 {[%clk 0:02:25.7]} 11... Bf7 {[%clk 0:01:51.5]} 12. c3 {[%clk
0:02:25.8]} 12... Qd7 {[%clk 0:01:41.8]} 13. Nd2 {[%clk 0:02:22.5]} 13... O-O-O
{[%clk 0:01:40.2]} 14. Qa4 {[%clk 0:02:17.7]} 14... Kb8 {[%clk 0:01:29.5]} 15.
O-O-O {[%clk 0:02:09.3]} 15... e5 {[%clk 0:01:24.2]} 16. Ne2 {[%clk 0:01:55.5]}
16... e4 {[%clk 0:01:09.8]} 17. Bb5 {[%clk 0:01:27.5]} 17... a6 {[%clk
0:01:09.1]} 18. Bxc6 {[%clk 0:01:27.3]} 18... Qxc6 {[%clk 0:01:06.9]} 19. Qxc6
{[%clk 0:01:26.9]} 19... bxc6 {[%clk 0:01:07.8]} 20. Nf1 {[%clk 0:01:15.1]}
20... Be6 {[%clk 0:00:59.7]} 21. Nf4 {[%clk 0:01:12.1]} 21... Bc8 {[%clk
0:00:56]} 22. Ng6 {[%clk 0:01:05.9]} 22... Rh7 {[%clk 0:00:54.7]} 23. Ne5 {[%clk
0:01:03]} 23... Kb7 {[%clk 0:00:50.5]} 24. Ne3 {[%clk 0:01:03.2]} 24... Be7
{[%clk 0:00:41.2]} 25. Rdg1 {[%clk 0:00:55.2]} 25... c5 {[%clk 0:00:35.6]} 26.
Ng6 {[%clk 0:00:33.1]} 26... cxd4 {[%clk 0:00:23.7]} 27. cxd4 {[%clk 0:00:28.8]}
27... Bd6 {[%clk 0:00:21.5]} 28. h5 {[%clk 0:00:22.6]} 28... c6 {[%clk
0:00:15.4]} 29. h6 {[%clk 0:00:22.1]} 29... Rd7 {[%clk 0:00:04.6]} 30. Nf5
{[%clk 0:00:15.8]} 30... Rf7 {[%clk 0:00:04.5]} 31. Nxd6+ {[%clk 0:00:15.5]} 1-0

[Event "Early-Titled-Tuesday-Blitz-January-30-2024"]
[Site "Chess.com"]
[Date "2024.01.30"]
[Round "4"]
[White "dennisodessa"]
[Black "TigrVShlyape"]
[Result "0-1"]
[WhiteElo "2618"]
[BlackElo "2924"]
[TimeControl "180+1"]
[EndTime "8:40:54 PST"]
[Termination "TigrVShlyape won on time"]

1. d4 {[%clk 0:03:00.9]} 1... f5 {[%clk 0:02:59.5]} 2. c4 {[%clk 0:03:01.5]}
2... Nf6 {[%clk 0:02:59.1]} 3. Nc3 {[%clk 0:03:02.2]} 3... e6 {[%clk 0:02:59.4]}
4. Nf3 {[%clk 0:03:02.2]} 4... Bb4 {[%clk 0:02:55.8]} 5. Qc2 {[%clk 0:02:47.3]}
5... a5 {[%clk 0:02:54.7]} 6. e3 {[%clk 0:02:47]} 6... O-O {[%clk 0:02:49.3]} 7.
Bd3 {[%clk 0:02:46.8]} 7... b6 {[%clk 0:02:45.2]} 8. O-O {[%clk 0:02:40.3]} 8...
Bb7 {[%clk 0:02:45.2]} 9. Nd2 {[%clk 0:02:37.6]} 9... Qe8 {[%clk 0:02:31.9]} 10.
e4 {[%clk 0:02:33.1]} 10... Nc6 {[%clk 0:02:27]} 11. d5 {[%clk 0:02:12.9]} 11...
Nd4 {[%clk 0:02:08.7]} 12. Qd1 {[%clk 0:02:12.7]} 12... Bxc3 {[%clk 0:01:55.5]}
13. bxc3 {[%clk 0:02:13.6]} 13... fxe4 {[%clk 0:01:55.5]} 14. Nxe4 {[%clk
0:02:07.2]} 14... Nf5 {[%clk 0:01:50.4]} 15. Re1 {[%clk 0:01:43.8]} 15... Nxe4
{[%clk 0:01:46.7]} 16. Bxe4 {[%clk 0:01:43.4]} 16... Nd6 {[%clk 0:01:33.6]} 17.
Bd3 {[%clk 0:01:21.7]} 17... Qf7 {[%clk 0:01:32.2]} 18. Qc2 {[%clk 0:01:15.3]}
18... h6 {[%clk 0:01:16.8]} 19. dxe6 {[%clk 0:01:13.3]} 19... dxe6 {[%clk
0:01:16.2]} 20. Ba3 {[%clk 0:01:10.7]} 20... Qf6 {[%clk 0:00:56.7]} 21. Bf1
{[%clk 0:00:51.2]} 21... c5 {[%clk 0:00:49.1]} 22. Rab1 {[%clk 0:00:48.4]} 22...
Ra6 {[%clk 0:00:45.2]} 23. Rbd1 {[%clk 0:00:42.2]} 23... e5 {[%clk 0:00:39]} 24.
Rd2 {[%clk 0:00:35.1]} 24... Raa8 {[%clk 0:00:38]} 25. Red1 {[%clk 0:00:28.2]}
25... Ne4 {[%clk 0:00:31]} 26. Re2 {[%clk 0:00:28.7]} 26... Ng5 {[%clk
0:00:29.4]} 27. Re3 {[%clk 0:00:18.5]} 27... Rad8 {[%clk 0:00:28.1]} 28. Rxd8
{[%clk 0:00:14.8]} 28... Rxd8 {[%clk 0:00:27.9]} 29. Bc1 {[%clk 0:00:15.5]}
29... Ne6 {[%clk 0:00:25]} 30. g3 {[%clk 0:00:12.3]} 30... Ng5 {[%clk
0:00:24.5]} 31. Bg2 {[%clk 0:00:07.5]} 31... Nf3+ {[%clk 0:00:24.2]} 32. Kh1
{[%clk 0:00:04.5]} 32... Qf7 {[%clk 0:00:19.6]} 33. Qe2 {[%clk 0:00:04.5]} 33...
Rf8 {[%clk 0:00:18.3]} 34. h4 {[%clk 0:00:01.7]} 34... Qf5 {[%clk 0:00:17.3]}
0-1

[Event "Early-Titled-Tuesday-Blitz-January-30-2024"]
[Site "Chess.com"]
[Date "2024.01.30"]
[Round "4"]
[White "LileKoridze"]
[Black "kingofthenil"]
[Result "0-1"]
[WhiteElo "2366"]
[BlackElo "2675"]
[TimeControl "180+1"]
[EndTime "8:40:56 PST"]
[Termination "kingofthenil won by resignation"]

1. d4 {[%clk 0:03:00.9]} 1... d6 {[%clk 0:02:58.6]} 2. Nf3 {[%clk 0:03:00.6]}
2... Nc6 {[%clk 0:02:56.7]} 3. c4 {[%clk 0:03:00.8]} 3... e5 {[%clk 0:02:55.5]}
4. Nc3 {[%clk 0:03:00]} 4... g6 {[%clk 0:02:49.6]} 5. e3 {[%clk 0:02:58.2]} 5...
Bg7 {[%clk 0:02:48.4]} 6. Bd3 {[%clk 0:02:58.5]} 6... exd4 {[%clk 0:02:45.7]} 7.
exd4 {[%clk 0:02:55.6]} 7... Nxd4 {[%clk 0:02:46.6]} 8. O-O {[%clk 0:02:55.6]}
8... Bg4 {[%clk 0:01:55.8]} 9. Be4 {[%clk 0:02:24.7]} 9... Nxf3+ {[%clk
0:01:40.7]} 10. Bxf3 {[%clk 0:02:09.2]} 10... Bxf3 {[%clk 0:01:39.6]} 11. Qxf3
{[%clk 0:02:10.1]} 11... Ne7 {[%clk 0:01:35.4]} 12. Qxb7 {[%clk 0:02:09.3]}
12... O-O {[%clk 0:01:35.1]} 13. Bg5 {[%clk 0:02:07.3]} 13... Qc8 {[%clk
0:01:27]} 14. Qxc8 {[%clk 0:02:02.3]} 14... Nxc8 {[%clk 0:01:27.9]} 15. Rac1
{[%clk 0:02:02.2]} 15... h6 {[%clk 0:01:20.4]} 16. Be3 {[%clk 0:01:59.9]} 16...
Ne7 {[%clk 0:01:20]} 17. b3 {[%clk 0:01:53.1]} 17... c6 {[%clk 0:01:10.3]} 18.
Rfd1 {[%clk 0:01:51.8]} 18... Nf5 {[%clk 0:01:04.4]} 19. Bf4 {[%clk 0:01:47.1]}
19... Rad8 {[%clk 0:00:47.6]} 20. Kf1 {[%clk 0:01:35]} 20... Rfe8 {[%clk
0:00:46.3]} 21. f3 {[%clk 0:01:27.8]} 21... g5 {[%clk 0:00:43.7]} 22. Bd2 {[%clk
0:01:26.4]} 22... d5 {[%clk 0:00:43.6]} 23. cxd5 {[%clk 0:01:25.1]} 23... cxd5
{[%clk 0:00:44.5]} 24. Re1 {[%clk 0:01:25.4]} 24... d4 {[%clk 0:00:43]} 25. Ne4
{[%clk 0:01:25.1]} 25... d3 {[%clk 0:00:42.2]} 26. Rc7 {[%clk 0:01:23.6]} 26...
Bd4 {[%clk 0:00:32.3]} 27. g3 {[%clk 0:01:02.9]} 27... Re6 {[%clk 0:00:22]} 28.
Kg2 {[%clk 0:00:58.2]} 28... Bb6 {[%clk 0:00:20.9]} 29. Rc4 {[%clk 0:00:47.8]}
29... Nd4 {[%clk 0:00:20]} 30. Rec1 {[%clk 0:00:39]} 30... g4 {[%clk 0:00:15.8]}
31. Kf1 {[%clk 0:00:25.2]} 31... Nxf3 {[%clk 0:00:12.9]} 32. Rd1 {[%clk
0:00:19.3]} 32... Rd4 {[%clk 0:00:10.1]} 33. Rxd4 {[%clk 0:00:16.5]} 33... Bxd4
{[%clk 0:00:11]} 34. Nf2 {[%clk 0:00:15.6]} 34... Nxh2+ {[%clk 0:00:09.9]} 35.
Kg2 {[%clk 0:00:15.5]} 35... Bxf2 {[%clk 0:00:09.3]} 36. Kxf2 {[%clk 0:00:14.2]}
36... Re2+ {[%clk 0:00:10.2]} 37. Kg1 {[%clk 0:00:14.3]} 37... Nf3+ {[%clk
0:00:10.5]} 38. Kf1 {[%clk 0:00:14.8]} 38... Nxd2+ {[%clk 0:00:09.2]} 0-1

[Event "Early-Titled-Tuesday-Blitz-January-30-2024"]
[Site "Chess.com"]
[Date "2024.01.30"]
[Round "4"]
[White "Mops_2004"]
[Black "ozen_metehan"]
[Result "1-0"]
[WhiteElo "2752"]
[BlackElo "2440"]
[TimeControl "180+1"]
[EndTime "8:40:56 PST"]
[Termination "Mops_2004 won by checkmate"]

1. f4 {[%clk 0:03:00.9]} 1... d6 {[%clk 0:02:58.7]} 2. Nf3 {[%clk 0:02:59.2]}
2... g6 {[%clk 0:02:59.4]} 3. d4 {[%clk 0:02:54.7]} 3... Nf6 {[%clk 0:02:58.9]}
4. c4 {[%clk 0:02:50]} 4... Bg7 {[%clk 0:02:58.6]} 5. Nc3 {[%clk 0:02:50.3]}
5... O-O {[%clk 0:02:55.8]} 6. e4 {[%clk 0:02:50.1]} 6... c5 {[%clk 0:02:56.7]}
7. dxc5 {[%clk 0:02:46.5]} 7... Qa5 {[%clk 0:02:56.6]} 8. Bd3 {[%clk 0:02:41.7]}
8... Qxc5 {[%clk 0:02:54.6]} 9. Qe2 {[%clk 0:02:41.9]} 9... Nc6 {[%clk
0:02:53.4]} 10. Be3 {[%clk 0:02:41.2]} 10... Qa5 {[%clk 0:02:54.2]} 11. h3
{[%clk 0:02:37.8]} 11... Nh5 {[%clk 0:02:52.7]} 12. Kf2 {[%clk 0:02:35]} 12...
Bxc3 {[%clk 0:02:45.3]} 13. bxc3 {[%clk 0:02:34.6]} 13... e5 {[%clk 0:02:46.2]}
14. f5 {[%clk 0:02:18.4]} 14... Nf4 {[%clk 0:02:46.1]} 15. Qd2 {[%clk
0:02:06.8]} 15... b6 {[%clk 0:02:26.9]} 16. g3 {[%clk 0:01:43.3]} 16... Nxd3+
{[%clk 0:02:23.6]} 17. Qxd3 {[%clk 0:01:43.5]} 17... Ba6 {[%clk 0:02:23]} 18. a4
{[%clk 0:01:42.9]} 18... Rac8 {[%clk 0:02:20.3]} 19. Nd2 {[%clk 0:01:37.7]}
19... Rfd8 {[%clk 0:02:10.4]} 20. Nb3 {[%clk 0:01:35.2]} 20... Nb4 {[%clk
0:02:03.7]} 21. Qd2 {[%clk 0:01:28.4]} 21... Nd3+ {[%clk 0:01:40.5]} 22. Kg2
{[%clk 0:01:15.5]} 22... Bxc4 {[%clk 0:01:33.8]} 23. Nxa5 {[%clk 0:01:15.5]}
23... bxa5 {[%clk 0:01:34.7]} 24. Bg5 {[%clk 0:01:13.1]} 24... Rd7 {[%clk
0:01:33.8]} 25. Bf6 {[%clk 0:01:13.1]} 25... Kf8 {[%clk 0:01:27.4]} 26. Qh6+
{[%clk 0:01:12.5]} 26... Ke8 {[%clk 0:01:27]} 27. Qxh7 {[%clk 0:01:13.1]} 27...
Rb7 {[%clk 0:01:27.2]} 28. Qg8+ {[%clk 0:01:11]} 28... Kd7 {[%clk 0:01:26.9]}
29. Qg7 {[%clk 0:00:26.5]} 29... Rb2+ {[%clk 0:01:25.8]} 30. Kf3 {[%clk
0:00:22.2]} 30... gxf5 {[%clk 0:01:25.8]} 31. exf5 {[%clk 0:00:16.5]} 31... Bd5+
{[%clk 0:01:04.9]} 32. Kg4 {[%clk 0:00:16.7]} 32... Rc4+ {[%clk 0:00:55.7]} 33.
Kh5 {[%clk 0:00:16.9]} 33... Bf3+ {[%clk 0:00:31.7]} 34. Kh6 {[%clk 0:00:16.7]}
34... Bd5 {[%clk 0:00:30.7]} 35. Rab1 {[%clk 0:00:15]} 35... Rg2 {[%clk
0:00:27.7]} 36. Qf8 {[%clk 0:00:13]} 36... Rc8 {[%clk 0:00:26.6]} 37. Qe7+
{[%clk 0:00:12.4]} 37... Kc6 {[%clk 0:00:26.6]} 38. Qb7+ {[%clk 0:00:12.5]}
38... Kc5 {[%clk 0:00:26.6]} 39. Qb5# {[%clk 0:00:11.9]} 1-0

[Event "Early-Titled-Tuesday-Blitz-January-30-2024"]
[Site "Chess.com"]
[Date "2024.01.30"]
[Round "4"]
[White "Iana_Shirova"]
[Black "Heinza9"]
[Result "1-0"]
[WhiteElo "2152"]
[BlackElo "2311"]
[TimeControl "180+1"]
[EndTime "8:40:56 PST"]
[Termination "Iana_Shirova won on time"]

1. e4 {[%clk 0:03:00.9]} 1... e5 {[%clk 0:02:59.4]} 2. Nf3 {[%clk 0:03:00.7]}
2... Nc6 {[%clk 0:02:59.2]} 3. Bb5 {[%clk 0:03:00.8]} 3... f5 {[%clk 0:02:59]}
4. d3 {[%clk 0:02:53.7]} 4... Nf6 {[%clk 0:02:58.1]} 5. O-O {[%clk 0:02:51.4]}
5... d6 {[%clk 0:02:57.6]} 6. Nc3 {[%clk 0:02:51.2]} 6... Be7 {[%clk 0:02:57.2]}
7. d4 {[%clk 0:02:51]} 7... fxe4 {[%clk 0:02:56.4]} 8. dxe5 {[%clk 0:02:48.5]}
8... exf3 {[%clk 0:02:41.7]} 9. exf6 {[%clk 0:02:44.1]} 9... Bxf6 {[%clk
0:02:41.7]} 10. Re1+ {[%clk 0:02:38.7]} 10... Kf8 {[%clk 0:02:38.5]} 11. Bxc6
{[%clk 0:02:30]} 11... bxc6 {[%clk 0:02:38.4]} 12. Qxf3 {[%clk 0:02:30.1]} 12...
d5 {[%clk 0:02:33.9]} 13. Bg5 {[%clk 0:02:23.9]} 13... h6 {[%clk 0:02:13.6]} 14.
Bxf6 {[%clk 0:02:19.1]} 14... Qxf6 {[%clk 0:02:13.6]} 15. Qg3 {[%clk 0:02:19.7]}
15... Qd6 {[%clk 0:01:47.8]} 16. Qf3+ {[%clk 0:02:11.6]} 16... Qf6 {[%clk
0:01:38]} 17. Qg3 {[%clk 0:02:11.3]} 17... Qd6 {[%clk 0:01:33.1]} 18. Qd3 {[%clk
0:02:11.1]} 18... Be6 {[%clk 0:01:15.3]} 19. Rad1 {[%clk 0:02:10.7]} 19... Re8
{[%clk 0:01:06.7]} 20. Qg6 {[%clk 0:02:09.9]} 20... Bf7 {[%clk 0:01:01.8]} 21.
Qf5 {[%clk 0:02:07.3]} 21... Rxe1+ {[%clk 0:00:54.8]} 22. Rxe1 {[%clk
0:02:08.2]} 22... g6 {[%clk 0:00:50.7]} 23. Qe5 {[%clk 0:01:59.6]} 23... Rh7
{[%clk 0:00:30.6]} 24. h3 {[%clk 0:01:43.1]} 24... Qxe5 {[%clk 0:00:19.4]} 25.
Rxe5 {[%clk 0:01:44]} 25... Be8 {[%clk 0:00:19.7]} 26. Na4 {[%clk 0:01:42.8]}
26... Re7 {[%clk 0:00:19.1]} 27. f4 {[%clk 0:01:37.5]} 27... Rxe5 {[%clk
0:00:18.4]} 28. fxe5 {[%clk 0:01:38.4]} 28... Ke7 {[%clk 0:00:18.8]} 29. Nc5
{[%clk 0:01:39]} 29... Bf7 {[%clk 0:00:17.7]} 30. c3 {[%clk 0:01:37.5]} 30... d4
{[%clk 0:00:17]} 31. cxd4 {[%clk 0:01:36.4]} 31... Bxa2 {[%clk 0:00:17]} 32. b4
{[%clk 0:01:34.2]} 32... Bd5 {[%clk 0:00:16.6]} 33. Kf2 {[%clk 0:01:34.3]} 33...
g5 {[%clk 0:00:15.8]} 34. g3 {[%clk 0:01:34.7]} 34... Kf7 {[%clk 0:00:14.9]} 35.
Ke3 {[%clk 0:01:33.2]} 35... Ke7 {[%clk 0:00:14.8]} 36. h4 {[%clk 0:01:30.3]}
36... gxh4 {[%clk 0:00:13.5]} 37. gxh4 {[%clk 0:01:31.2]} 37... h5 {[%clk
0:00:13.9]} 38. Kf4 {[%clk 0:01:31.3]} 38... Bc4 {[%clk 0:00:10.9]} 39. Ne4
{[%clk 0:01:21.6]} 39... Be2 {[%clk 0:00:09.2]} 40. Ng3 {[%clk 0:01:21]} 40...
Bd1 {[%clk 0:00:08.2]} 41. Ne4 {[%clk 0:01:09.9]} 41... Ke6 {[%clk 0:00:06.6]}
42. Nc3 {[%clk 0:01:08.1]} 42... Bg4 {[%clk 0:00:04.4]} 43. Ke4 {[%clk
0:01:06.8]} 43... Ke7 {[%clk 0:00:02.8]} 44. Ke3 {[%clk 0:01:01.6]} 44... Ke6
{[%clk 0:00:02.8]} 45. Kf4 {[%clk 0:01:02]} 45... Ke7 {[%clk 0:00:02.6]} 46. Ne4
{[%clk 0:00:58]} 46... Ke6 {[%clk 0:00:02.3]} 47. Nf6 {[%clk 0:00:58.7]} 47...
Bd1 {[%clk 0:00:01.2]} 48. Kg5 {[%clk 0:00:58.3]} 1-0